bitfinex/quotes_BTCUSD_20230901
["timestamp","ask_amount","ask_price","bid_price","bid_amount"]
[1693539621983,3.15867237,26103.0,26102.0,0.196]
[1693539622186,3.15861237,26103.0,26102.0,0.196]
[1693539622382,3.09393237,26103.0,26102.0,0.196]
[1693539627032,3.16599237,26103.0,26102.0,0.196]
[1693539627232,3.17319237,26103.0,26102.0,0.196]
[1693539627437,3.17043237,26103.0,26102.0,0.196]
[1693539627661,3.17049237,26103.0,26102.0,0.196]
[1693539627871,3.17037237,26103.0,26102.0,0.196]
[1693539628069,3.17025237,26103.0,26102.0,0.196]
[1693539628273,3.17019237,26103.0,26102.0,0.196]
[1693539628476,3.17013237,26103.0,26102.0,0.196]
[1693539628677,3.17187237,26103.0,26102.0,0.196]
[1693539628876,3.16971237,26103.0,26102.0,0.196]
[1693539629072,3.16959237,26103.0,26102.0,0.196]
[1693539629274,3.16941237,26103.0,26102.0,0.196]
[1693539629501,3.16881237,26103.0,26102.0,0.196]
[1693539629701,3.16875237,26103.0,26102.0,0.196]
[1693539629845,3.16785237,26103.0,26102.0,0.196]
[1693539630047,3.16725237,26103.0,26102.0,0.196]
[1693539630250,3.16719237,26103.0,26102.0,0.196]
[1693539630452,3.17055237,26103.0,26102.0,0.196]
[1693539630743,3.16863237,26103.0,26102.0,0.196]
[1693539630882,3.16851237,26103.0,26102.0,0.196]
[1693539631113,1.93592277,26103.0,26102.0,0.196]
[1693539631504,2.51056877,26103.0,26102.0,0.196]
[1693539632763,1.54883599,26103.0,26102.0,0.196]
[1693539646513,1.54883599,26103.0,26102.0,0.770668]
[1693539647329,1.54883599,26103.0,26102.0,0.196]
[1693539650054,1.61603599,26103.0,26102.0,0.196]
[1693539650259,2.31182199,26103.0,26102.0,0.196]
[1693539650454,2.31482199,26103.0,26102.0,0.196]
[1693539651100,2.31440199,26103.0,26102.0,0.196]
[1693539651306,2.31140199,26103.0,26102.0,0.196]
[1693539651502,2.31080199,26103.0,26102.0,0.196]
[1693539651971,2.31146199,26103.0,26102.0,0.196]
[1693539652217,2.31104199,26103.0,26102.0,0.196]
[1693539652418,2.1129969,26103.0,26102.0,0.196]
[1693539652530,2.1129369,26103.0,26102.0,0.196]
[1693539652730,2.1128769,26103.0,26102.0,0.196]
[1693539652994,2.1128169,26103.0,26102.0,0.196]
[1693539653204,2.1125769,26103.0,26102.0,0.196]
[1693539653627,2.1129969,26103.0,26102.0,0.196]
[1693539653778,2.1133569,26103.0,26102.0,0.196]
[1693539653981,2.1127569,26103.0,26102.0,0.196]
[1693539654187,2.1129969,26103.0,26102.0,0.196]
[1693539654390,1.16230607,26103.0,26102.0,0.196]
[1693539654597,1.2915684,26103.0,26102.0,0.196]
[1693539655425,1.36889754,26103.0,26102.0,0.196]
[1693539656010,1.2915684,26103.0,26102.0,0.196]
[1693539658581,1.01538712,26103.0,26102.0,0.196]
[1693539658802,1.29157409,26103.0,26102.0,0.196]
[1693539660634,1.29157409,26103.0,26102.0,1.345336]
[1693539660968,1.29157409,26103.0,26102.0,0.770668]
[1693539663226,1.29157409,26103.0,26102.0,0.196]
[1693539665089,1.29157409,26103.0,26102.0,0.19620334]
[1693539669509,1.29157409,26103.0,26102.0,0.196]
[1693539669837,1.29157409,26103.0,26102.0,0.19620334]
[1693539677944,1.86622009,26103.0,26102.0,0.19620334]
[1693539678144,1.86622009,26103.0,26102.0,0.196]
[1693539678413,1.86622009,26103.0,26102.0,0.19620334]
[1693539678774,1.29157409,26103.0,26102.0,0.19620334]
[1693539688605,1.86622009,26103.0,26102.0,0.19620334]
[1693539690911,2.14099729,26103.0,26102.0,0.19620334]
[1693539693914,1.56635129,26103.0,26102.0,0.19620334]
[1693539701050,2.14099729,26103.0,26102.0,0.19620334]
[1693539701252,2.20885729,26103.0,26102.0,0.19620334]
[1693539701461,2.20807729,26103.0,26102.0,0.19620334]
[1693539701660,2.20801729,26103.0,26102.0,0.19620334]
[1693539701865,2.20795729,26103.0,26102.0,0.19620334]
[1693539702067,2.20789729,26103.0,26102.0,0.19620334]
[1693539702491,2.20759729,26103.0,26102.0,0.19620334]
[1693539702727,2.20747729,26103.0,26102.0,0.19620334]
[1693539703069,2.20735729,26103.0,26102.0,0.19620334]
[1693539703467,2.20729729,26103.0,26102.0,0.19620334]
[1693539703641,2.20735729,26103.0,26102.0,0.19620334]
[1693539703870,2.20681729,26103.0,26102.0,0.19620334]
[1693539704072,2.20675729,26103.0,26102.0,0.19620334]
[1693539704485,2.20669729,26103.0,26102.0,0.19620334]
[1693539704692,2.20687729,26103.0,26102.0,0.19620334]
[1693539704900,2.20693729,26103.0,26102.0,0.19620334]
[1693539705072,2.20633729,26103.0,26102.0,0.19620334]
[1693539705397,2.20627729,26103.0,26102.0,0.19620334]
[1693539705633,2.71564329,26103.0,26102.0,0.19620334]
[1693539707152,2.78302329,26103.0,26102.0,0.19620334]
[1693539707373,2.78536329,26103.0,26102.0,0.19620334]
[1693539707598,2.78518329,26103.0,26102.0,0.19620334]
[1693539708002,2.78506329,26103.0,26102.0,0.19620334]
[1693539708249,2.78320329,26103.0,26102.0,0.19620334]
[1693539708431,2.78302329,26103.0,26102.0,0.19620334]
[1693539708631,2.78188329,26103.0,26102.0,0.19620334]
[1693539708836,2.78062329,26103.0,26102.0,0.19620334]
[1693539709167,2.78038329,26103.0,26102.0,0.19620334]
[1693539709346,2.78032329,26103.0,26102.0,0.19620334]
[1693539709671,2.71564329,26103.0,26102.0,0.19620334]
[1693539711012,2.78026329,26103.0,26102.0,0.19620334]
[1693539711239,2.78014329,26103.0,26102.0,0.19620334]
[1693539711435,2.78026329,26103.0,26102.0,0.19620334]
[1693539711642,2.78014329,26103.0,26102.0,0.19620334]
[1693539711842,2.78026329,26103.0,26102.0,0.19620334]
[1693539712087,2.78008329,26103.0,26102.0,0.19620334]
[1693539712293,2.83384329,26103.0,26102.0,0.19620334]
[1693539712493,2.90014329,26103.0,26102.0,0.19620334]
[1693539712691,2.90008329,26103.0,26102.0,0.19620334]
[1693539712906,2.90026329,26103.0,26102.0,0.19620334]
[1693539713105,2.90584329,26103.0,26102.0,0.19620334]
[1693539713250,2.90542329,26103.0,26102.0,0.19620334]
[1693539713452,2.90446329,26103.0,26102.0,0.19620334]
[1693539713676,2.90440329,26103.0,26102.0,0.19620334]
[1693539713891,2.90416329,26103.0,26102.0,0.19620334]
[1693539714084,2.90404329,26103.0,26102.0,0.19620334]
[1693539714295,2.90392329,26103.0,26102.0,0.19620334]
[1693539714494,2.90380329,26103.0,26102.0,0.19620334]
[1693539714671,2.90350329,26103.0,26102.0,0.19620334]
[1693539715049,2.90356329,26103.0,26102.0,0.19620334]
[1693539715318,2.90350329,26103.0,26102.0,0.19620334]
[1693539715526,2.90086329,26103.0,26102.0,0.19620334]
[1693539715718,2.89846329,26103.0,26102.0,0.19620334]
[1693539715838,2.89840329,26103.0,26102.0,0.19620334]
[1693539716040,2.89834329,26103.0,26102.0,0.19620334]
[1693539716236,2.89828329,26103.0,26102.0,0.19620334]
[1693539716464,2.89840329,26103.0,26102.0,0.19620334]
[1693539716658,2.83384329,26103.0,26102.0,0.19620334]
[1693539719690,2.33702277,26103.0,26102.0,0.19620334]
[1693539720272,2.0608358,26103.0,26102.0,0.19620334]
[1693539721273,2.1252758,26103.0,26102.0,0.19620334]
[1693539721474,2.0608358,26103.0,26102.0,0.19620334]
[1693539722468,2.1252758,26103.0,26102.0,0.19620334]
[1693539722697,2.1259358,26103.0,26102.0,0.19620334]
[1693539722909,2.1257558,26103.0,26102.0,0.19620334]
[1693539723112,2.1258758,26103.0,26102.0,0.19620334]
[1693539723441,2.1257558,26103.0,26102.0,0.19620334]
[1693539723793,2.1256958,26103.0,26102.0,0.19620334]
[1693539724673,2.0608358,26103.0,26102.0,0.19620334]
[1693539726996,1.9426358,26103.0,26102.0,0.19620334]
[1693539727358,2.21885248,26103.0,26102.0,0.19620334]
[1693539727789,2.28455248,26103.0,26102.0,0.19620334]
[1693539728193,2.28425248,26103.0,26102.0,0.19620334]
[1693539728398,2.21885248,26103.0,26102.0,0.19620334]
[1693539730164,2.28347248,26103.0,26102.0,0.19620334]
[1693539730368,2.28341248,26103.0,26102.0,0.19620334]
[1693539730549,2.28465879,26103.0,26102.0,0.19620334]
[1693539730748,2.28549879,26103.0,26102.0,0.19620334]
[1693539730946,2.28585879,26103.0,26102.0,0.19620334]
[1693539731151,2.28525879,26103.0,26102.0,0.19620334]
[1693539731331,2.206907,26103.0,26102.0,0.19620334]
[1693539731530,2.206727,26103.0,26102.0,0.19620334]
[1693539731712,2.206847,26103.0,26102.0,0.19620334]
[1693539731913,2.206907,26103.0,26102.0,0.19620334]
[1693539732371,2.206847,26103.0,26102.0,0.19620334]
[1693539732518,2.206787,26103.0,26102.0,0.19620334]
[1693539732720,2.206727,26103.0,26102.0,0.19620334]
[1693539732925,2.28526679,26103.0,26102.0,0.19620334]
[1693539733137,2.28538679,26103.0,26102.0,0.19620334]
[1693539733337,2.28586679,26103.0,26102.0,0.19620334]
[1693539733532,2.207987,26103.0,26102.0,0.19620334]
[1693539733782,2.28395207,26103.0,26102.0,0.19620334]
[1693539733954,2.21939204,26103.0,26102.0,0.19620334]
[1693539735348,2.28395204,26103.0,26102.0,0.19620334]
[1693539735642,2.28449204,26103.0,26102.0,0.19620334]
[1693539736149,2.206067,26103.0,26102.0,0.19620334]
[1693539736550,2.205947,26103.0,26102.0,0.19620334]
[1693539736750,2.206367,26103.0,26102.0,0.19620334]
[1693539737077,2.205827,26103.0,26102.0,0.19620334]
[1693539737571,2.205587,26103.0,26102.0,0.19620334]
[1693539738080,2.205467,26103.0,26102.0,0.19620334]
[1693539738315,2.141027,26103.0,26102.0,0.19620334]
[1693539740986,2.715673,26103.0,26102.0,0.19620334]
[1693539741183,3.81195776,26103.0,26102.0,0.19620334]
[1693539741405,4.06402423,26103.0,26102.0,0.19620334]
[1693539741626,4.06336423,26103.0,26102.0,0.19620334]
[1693539741829,4.07111917,26103.0,26102.0,0.19620334]
[1693539742028,3.80505776,26103.0,26102.0,0.19620334]
[1693539742235,3.80577776,26103.0,26102.0,0.19620334]
[1693539742483,3.8284923,26103.0,26102.0,0.19620334]
[1693539742613,3.8283123,26103.0,26102.0,0.19620334]
[1693539742817,3.8273523,26103.0,26102.0,0.19620334]
[1693539743067,3.8271723,26103.0,26102.0,0.19620334]
[1693539743219,3.8256723,26103.0,26102.0,0.19620334]
[1693539743403,3.8271723,26103.0,26102.0,0.19620334]
[1693539743601,3.8262723,26103.0,26102.0,0.19620334]
[1693539743802,3.8263923,26103.0,26102.0,0.19620334]
[1693539744190,3.8293323,26103.0,26102.0,0.19620334]
[1693539744342,3.8349123,26103.0,26102.0,0.19620334]
[1693539744546,3.80871776,26103.0,26102.0,0.19620334]
[1693539744722,3.86802901,26103.0,26102.0,0.19620334]
[1693539744928,3.86766901,26103.0,26102.0,0.19620334]
[1693539745131,3.86748901,26103.0,26102.0,0.19620334]
[1693539745348,3.86676901,26103.0,26102.0,0.19620334]
[1693539745535,3.86634901,26103.0,26102.0,0.19620334]
[1693539745718,3.86616901,26103.0,26102.0,0.19620334]
[1693539745918,3.86598901,26103.0,26102.0,0.19620334]
[1693539746131,3.86580901,26103.0,26102.0,0.19620334]
[1693539746330,3.86544901,26103.0,26102.0,0.19620334]
[1693539746588,3.86526901,26103.0,26102.0,0.19620334]
[1693539746821,3.86502901,26103.0,26102.0,0.19620334]
[1693539747037,3.86490901,26103.0,26102.0,0.19620334]
[1693539747243,3.86556901,26103.0,26102.0,0.19620334]
[1693539747457,3.86436901,26103.0,26102.0,0.19620334]
[1693539747587,3.86388901,26103.0,26102.0,0.19620334]
[1693539747793,3.86472901,26103.0,26102.0,0.19620334]
[1693539748028,3.86454901,26103.0,26102.0,0.19620334]
[1693539748246,3.86442901,26103.0,26102.0,0.19620334]
[1693539748440,3.86280901,26103.0,26102.0,0.19620334]
[1693539748666,3.86352901,26103.0,26102.0,0.19620334]
[1693539748866,3.47571484,26103.0,26102.0,0.19620334]
[1693539748981,3.47661484,26103.0,26102.0,0.19620334]
[1693539749357,3.47559484,26103.0,26102.0,0.19620334]
[1693539749596,3.47541484,26103.0,26102.0,0.19620334]
[1693539749809,3.47541484,26103.0,26102.0,0.196]
[1693539749810,4.80406278,26103.0,26102.0,0.196]
[1693539750025,4.56891551,26103.0,26102.0,0.196]
[1693539750250,4.74933964,26103.0,26102.0,0.196]
[1693539750456,4.74933964,26103.0,26097.0,0.04966677]
[1693539750457,0.01162984,26099.0,26097.0,0.04966677]
[1693539750668,0.41373323,26097.0,26095.0,0.00020334]
[1693539750884,1.7278689,26096.0,26095.0,0.00020334]
[1693539751090,2.4177489,26096.0,26095.0,0.00020334]
[1693539751298,2.4174489,26096.0,26095.0,0.00020334]
[1693539751505,2.9930889,26096.0,26095.0,0.00020334]
[1693539751719,4.10270047,26096.0,26095.0,0.00020334]
[1693539751897,4.37932163,26096.0,26095.0,0.00020334]
[1693539752127,4.38976163,26096.0,26095.0,0.00020334]
[1693539752356,4.03691835,26096.0,26095.0,0.00020334]
[1693539752567,4.03439835,26096.0,26095.0,0.00020334]
[1693539752768,4.03997835,26096.0,26094.0,0.00020334]
[1693539752975,1.21820374,26095.0,26093.0,0.00020334]
[1693539753197,2.25245618,26094.0,26093.0,0.00020334]
[1693539753462,2.58541227,26094.0,26093.0,0.00020334]
[1693539753666,2.96776644,26094.0,26093.0,0.00020334]
[1693539753838,3.23089922,26094.0,26093.0,0.00020334]
[1693539754150,3.66638644,26094.0,26093.0,0.00120334]
[1693539754341,3.61976731,26094.0,26093.0,0.00020334]
[1693539754562,3.61982731,26094.0,26093.0,0.00020334]
[1693539754766,3.74992831,26094.0,26093.0,0.00020334]
[1693539754965,3.74998831,26094.0,26093.0,0.00020334]
[1693539755152,3.75004831,26094.0,26093.0,0.00020334]
[1693539755447,4.12956858,26094.0,26093.0,0.00120334]
[1693539755681,4.16544858,26094.0,26093.0,0.00220334]
[1693539755883,4.16550858,26094.0,26093.0,0.00220334]
[1693539756066,3.94619162,26094.0,26093.0,0.00120334]
[1693539756359,4.03656872,26094.0,26093.0,0.00120334]
[1693539756641,4.07130872,26094.0,26093.0,0.00220334]
[1693539756907,4.06020872,26094.0,26093.0,0.00220334]
[1693539757153,4.06008872,26094.0,26093.0,0.19220334]
[1693539757362,3.9217278,26094.0,26093.0,0.19220334]
[1693539757566,3.9219078,26094.0,26093.0,0.19220334]
[1693539757770,3.9243078,26094.0,26093.0,0.19220334]
[1693539757950,3.9246078,26094.0,26093.0,0.19220334]
[1693539758106,3.9246678,26094.0,26093.0,0.19220334]
[1693539758309,3.8341707,26094.0,26093.0,0.19220334]
[1693539758514,3.8313507,26094.0,26093.0,0.19220334]
[1693539758740,3.9253278,26094.0,26093.0,0.19220334]
[1693539758937,3.8333907,26094.0,26093.0,0.19220334]
[1693539759132,3.8330907,26094.0,26093.0,0.19220334]
[1693539759545,3.8317107,26094.0,26093.0,0.19220334]
[1693539759778,3.8314107,26094.0,26093.0,0.19220334]
[1693539760004,3.8319507,26094.0,26093.0,0.19220334]
[1693539760237,3.8336307,26094.0,26093.0,0.19220334]
[1693539760471,3.8320707,26094.0,26093.0,0.19220334]
[1693539760722,3.8320107,26094.0,26093.0,0.19220334]
[1693539760947,3.8324907,26094.0,26093.0,0.19220334]
[1693539761175,3.8347707,26094.0,26093.0,0.19220334]
[1693539761417,3.8312307,26094.0,26093.0,0.19220334]
[1693539761649,3.8321907,26094.0,26093.0,0.19220334]
[1693539761889,3.8321307,26094.0,26093.0,0.19220334]
[1693539762149,3.8321907,26094.0,26093.0,0.19220334]
[1693539762388,3.8322507,26094.0,26093.0,0.19220334]
[1693539762623,3.8352507,26094.0,26093.0,0.19220334]
[1693539762858,3.8356107,26094.0,26093.0,0.19220334]
[1693539763073,3.8352507,26094.0,26093.0,0.19220334]
[1693539763290,3.8349507,26094.0,26093.0,0.19220334]
[1693539763536,3.8351307,26094.0,26093.0,0.19220334]
[1693539763738,3.8345307,26094.0,26093.0,0.19220334]
[1693539763979,3.8330307,26094.0,26093.0,0.19220334]
[1693539764213,3.8334507,26094.0,26093.0,0.19220334]
[1693539764439,3.8362707,26094.0,26093.0,0.19220334]
[1693539764680,3.8362107,26094.0,26093.0,0.19220334]
[1693539764931,3.8344707,26094.0,26093.0,0.19220334]
[1693539765156,3.8363307,26094.0,26093.0,0.19220334]
[1693539765378,3.8357907,26094.0,26093.0,0.19220334]
[1693539765618,3.8345307,26094.0,26093.0,0.19220334]
[1693539765804,3.8344107,26094.0,26093.0,0.19220334]
[1693539766060,3.8359107,26094.0,26093.0,0.19220334]
[1693539766261,3.8361507,26094.0,26093.0,0.19220334]
[1693539766464,3.8360907,26094.0,26093.0,0.19220334]
[1693539766619,3.8375907,26094.0,26093.0,0.19220334]
[1693539766821,3.8375307,26094.0,26093.0,0.19220334]
[1693539767818,3.8358507,26094.0,26093.0,0.19220334]
[1693539767976,3.8315907,26094.0,26093.0,0.19220334]
[1693539768174,3.8318307,26094.0,26093.0,0.19220334]
[1693539768423,2.85555253,26094.0,26093.0,0.19220334]
[1693539768623,2.85603253,26094.0,26093.0,0.19220334]
[1693539768824,2.85381253,26094.0,26093.0,0.19220334]
[1693539769031,2.85525253,26094.0,26093.0,0.19220334]
[1693539769365,2.85501253,26094.0,26093.0,0.19220334]
[1693539769567,2.85531253,26094.0,26093.0,0.19220334]
[1693539769866,2.85525253,26094.0,26093.0,0.19220334]
[1693539770071,2.85285253,26094.0,26093.0,0.19220334]
[1693539770312,2.85531253,26094.0,26093.0,0.19220334]
[1693539770487,2.85369253,26094.0,26093.0,0.19220334]
[1693539770713,2.21014853,26094.0,26093.0,0.19220334]
[1693539772164,2.27830853,26094.0,26093.0,0.19220334]
[1693539772413,2.27854853,26094.0,26093.0,0.19220334]
[1693539772616,2.27824853,26094.0,26093.0,0.19220334]
[1693539772813,2.27812853,26094.0,26093.0,0.19220334]
[1693539773014,2.27674853,26094.0,26093.0,0.19220334]
[1693539773191,2.27692853,26094.0,26093.0,0.19220334]
[1693539773395,2.27848853,26094.0,26093.0,0.19220334]
[1693539773598,2.27854853,26094.0,26093.0,0.19220334]
[1693539774215,2.27680853,26094.0,26093.0,0.19220334]
[1693539774414,2.27626853,26094.0,26093.0,0.19220334]
[1693539774797,2.27848853,26094.0,26093.0,0.19220334]
[1693539775032,2.27836853,26094.0,26093.0,0.19220334]
[1693539775228,2.27740853,26094.0,26093.0,0.19220334]
[1693539775428,2.27704853,26094.0,26093.0,0.19220334]
[1693539775628,2.27686853,26094.0,26093.0,0.19220334]
[1693539775899,2.21014853,26094.0,26093.0,0.19220334]
[1693539778329,1.24821775,26094.0,26093.0,0.19220334]
[1693539780308,0.901681,26094.0,26093.0,0.7754395]
[1693539780906,0.901681,26094.0,26093.0,0.2005735]
[1693539782715,0.901681,26094.0,26093.0,1.9251715]
[1693539783127,0.772,26094.0,26093.0,1.9251715]
[1693539783569,0.736,26094.0,26093.0,1.9241715]
[1693539784611,0.758,26094.0,26093.0,1.9261715]
[1693539784818,0.758,26094.0,26093.0,1.3513055]
[1693539785652,0.722,26094.0,26093.0,1.3503055]
[1693539785904,0.743,26094.0,26093.0,1.3523055]
[1693539795528,0.8348171,26094.0,26093.0,1.3523055]
[1693539796523,0.97257802,26094.0,26093.0,1.3523055]
[1693539798449,0.88076092,26094.0,26093.0,0.7774395]
[1693539803748,1.06449788,26094.0,26093.0,0.7774395]
[1693539805175,1.06449788,26094.0,26093.0,1.3523055]
[1693539805965,1.0647205,26094.0,26093.0,1.3523055]
[1693539806161,0.92673696,26094.0,26093.0,1.3523055]
[1693539806890,1.06472126,26094.0,26093.0,1.3523055]
[1693539811999,0.8809843,26094.0,26093.0,1.3523055]
[1693539812193,1.02577574,26094.0,26093.0,1.3523055]
[1693539812402,2.91599641,26094.0,26093.0,0.19420334]
[1693539812610,3.87664412,26094.0,26093.0,0.2025735]
[1693539812858,3.28158012,26094.0,26093.0,0.2025735]
[1693539813008,3.26496012,26094.0,26093.0,0.2025735]
[1693539813239,3.00263093,26094.0,26093.0,0.2025735]
[1693539813444,2.98351093,26094.0,26093.0,0.2005735]
[1693539813652,3.26979066,26094.0,26093.0,0.2005735]
[1693539813864,3.01765093,26094.0,26093.0,0.2005735]
[1693539814058,3.01807093,26094.0,26093.0,0.2005735]
[1693539814254,3.01741093,26094.0,26093.0,0.2040405]
[1693539814462,3.291334,26094.0,26093.0,0.2040405]
[1693539814662,3.02497093,26094.0,26093.0,0.2040405]
[1693539814898,3.02515093,26094.0,26093.0,0.2040405]
[1693539815200,2.96797093,26094.0,26093.0,0.2020405]
[1693539815387,3.04021093,26094.0,26093.0,0.2020405]
[1693539815587,3.04099093,26094.0,26093.0,0.2020405]
[1693539815798,3.00481093,26094.0,26093.0,0.2020405]
[1693539815997,3.04093093,26094.0,26093.0,0.2020405]
[1693539816203,3.04039093,26094.0,26093.0,0.2020405]
[1693539816352,3.61547493,26094.0,26093.0,0.2020405]
[1693539816592,3.61493493,26094.0,26093.0,0.2020405]
[1693539816764,3.61355493,26094.0,26093.0,0.2020405]
[1693539816989,3.61205493,26094.0,26093.0,0.2020405]
[1693539817189,3.61337493,26094.0,26093.0,0.2020405]
[1693539817392,3.63437493,26094.0,26093.0,0.2020405]
[1693539817590,3.50908776,26094.0,26093.0,0.193467]
[1693539817750,3.65086776,26094.0,26093.0,0.193467]
[1693539817947,3.65026776,26094.0,26093.0,0.193467]
[1693539818209,3.65194776,26094.0,26093.0,0.193467]
[1693539818416,3.65086776,26094.0,26093.0,0.193467]
[1693539818626,3.65050776,26094.0,26093.0,0.193467]
[1693539818832,3.65194776,26094.0,26093.0,0.193467]
[1693539819041,3.65206776,26094.0,26093.0,0.193467]
[1693539819247,3.92474981,26094.0,26093.0,0.193467]
[1693539819450,3.92402981,26094.0,26093.0,0.193467]
[1693539819657,3.92318981,26094.0,26093.0,0.193467]
[1693539819962,3.79016981,26094.0,26093.0,0.193467]
[1693539820162,3.78998981,26094.0,26093.0,0.193467]
[1693539820410,3.69603531,26094.0,26093.0,0.193467]
[1693539820615,3.48216438,26094.0,26093.0,0.193467]
[1693539820826,3.48294438,26094.0,26093.0,0.193467]
[1693539821027,3.48240438,26094.0,26093.0,0.193467]
[1693539821244,3.48144438,26094.0,26093.0,0.193467]
[1693539821446,3.48150438,26094.0,26093.0,0.193467]
[1693539821654,3.48138438,26094.0,26093.0,0.193467]
[1693539821801,3.48132438,26094.0,26093.0,0.193467]
[1693539822017,3.52085086,26094.0,26093.0,0.193467]
[1693539822221,3.52079086,26094.0,26093.0,0.193467]
[1693539822558,3.52109086,26094.0,26093.0,0.193467]
[1693539822715,3.52133086,26094.0,26093.0,0.193467]
[1693539822959,3.51971086,26094.0,26093.0,0.193467]
[1693539823102,3.78790558,26094.0,26093.0,0.193467]
[1693539823305,3.78688558,26094.0,26093.0,0.193467]
[1693539823511,3.78718558,26094.0,26093.0,0.193467]
[1693539823756,3.78730558,26094.0,26093.0,0.193467]
[1693539823950,3.78748558,26094.0,26093.0,0.193467]
[1693539824147,3.51569086,26094.0,26093.0,0.193467]
[1693539824361,3.75313465,26094.0,26093.0,0.193467]
[1693539824562,3.75277465,26094.0,26093.0,0.193467]
[1693539824944,3.75283465,26094.0,26093.0,0.193467]
[1693539825353,3.74989465,26094.0,26093.0,0.193467]
[1693539825553,3.75025465,26094.0,26093.0,0.193467]
[1693539825820,3.75019465,26094.0,26093.0,0.193467]
[1693539825949,3.75025465,26094.0,26093.0,0.193467]
[1693539826129,3.75031465,26094.0,26093.0,0.193467]
[1693539826333,3.51545086,26094.0,26093.0,0.193467]
[1693539826529,3.76219971,26094.0,26093.0,0.193467]
[1693539826958,3.51323086,26094.0,26093.0,0.193467]
[1693539827161,3.78323281,26094.0,26093.0,0.193467]
[1693539827380,3.78287281,26094.0,26093.0,0.193467]
[1693539827536,3.51515086,26094.0,26093.0,0.193467]
[1693539827753,3.51533086,26094.0,26093.0,0.193467]
[1693539828127,3.51527086,26094.0,26093.0,0.193467]
[1693539828271,3.51533086,26094.0,26093.0,0.193467]
[1693539828479,3.47250438,26094.0,26093.0,0.193467]
[1693539828685,3.70791008,26094.0,26093.0,0.193467]
[1693539828907,3.47310438,26094.0,26093.0,0.193467]
[1693539829069,3.72430324,26094.0,26093.0,0.193467]
[1693539829290,3.72262324,26094.0,26093.0,0.193467]
[1693539829699,3.79355776,26094.0,26093.0,0.193467]
[1693539829977,3.5435589,26094.0,26093.0,0.193467]
[1693539830165,3.75014114,26094.0,26093.0,0.193467]
[1693539830369,3.75008114,26094.0,26093.0,0.193467]
[1693539830575,3.5436189,26094.0,26093.0,0.193467]
[1693539830774,3.81161609,26094.0,26093.0,0.193467]
[1693539830986,3.81167609,26094.0,26093.0,0.193467]
[1693539831175,3.81149609,26094.0,26093.0,0.193467]
[1693539831392,3.5460789,26094.0,26093.0,0.193467]
[1693539831537,3.5465589,26094.0,26093.0,0.193467]
[1693539831738,3.81434459,26094.0,26093.0,0.193467]
[1693539831963,3.81260459,26094.0,26093.0,0.193467]
[1693539832140,3.5446389,26094.0,26093.0,0.193467]
[1693539832335,3.5445789,26094.0,26093.0,0.193467]
[1693539832537,3.76527513,26094.0,26093.0,0.193467]
[1693539833170,3.5470389,26094.0,26093.0,0.193467]
[1693539833510,3.5479389,26094.0,26093.0,0.193467]
[1693539833708,3.5478189,26094.0,26093.0,0.193467]
[1693539833991,3.5478789,26094.0,26093.0,0.193467]
[1693539834322,3.5478189,26094.0,26093.0,0.193467]
[1693539834526,3.5477589,26094.0,26093.0,0.193467]
[1693539834726,3.80347963,26094.0,26093.0,0.193467]
[1693539835134,3.5476389,26094.0,26093.0,0.193467]
[1693539835339,3.58605296,26094.0,26093.0,0.193467]
[1693539835538,3.58587296,26094.0,26093.0,0.193467]
[1693539835673,3.83485286,26094.0,26093.0,0.193467]
[1693539835881,3.83413286,26094.0,26093.0,0.193467]
[1693539836077,3.52171844,26094.0,26093.0,0.193467]
[1693539836277,3.52237844,26094.0,26093.0,0.193467]
[1693539836599,3.52159844,26094.0,26093.0,0.193467]
[1693539836807,3.52153844,26094.0,26093.0,0.193467]
[1693539837327,3.52147844,26094.0,26093.0,0.193467]
[1693539837482,3.90881261,26094.0,26093.0,0.193467]
[1693539837677,3.90869261,26094.0,26093.0,0.193467]
[1693539838113,3.90863261,26094.0,26093.0,0.193467]
[1693539838322,3.90887261,26094.0,26093.0,0.193467]
[1693539838498,4.11005064,26094.0,26093.0,0.193467]
[1693539838749,4.10915064,26094.0,26093.0,0.193467]
[1693539838872,4.10969064,26094.0,26093.0,0.193467]
[1693539839076,4.10963064,26094.0,26093.0,0.193467]
[1693539839278,4.10915064,26094.0,26093.0,0.193467]
[1693539839544,4.10927064,26094.0,26093.0,0.193467]
[1693539839766,3.90599261,26094.0,26093.0,0.193467]
[1693539839910,3.90713261,26094.0,26093.0,0.193467]
[1693539840329,4.17609937,26094.0,26093.0,0.193467]
[1693539840529,3.90719261,26094.0,26093.0,0.193467]
[1693539840731,3.90713261,26094.0,26093.0,0.193467]
[1693539840936,3.90695261,26094.0,26093.0,0.193467]
[1693539841161,3.90707261,26094.0,26093.0,0.193467]
[1693539841517,4.14521,26094.0,26093.0,0.193467]
[1693539841716,3.90383261,26094.0,26093.0,0.193467]
[1693539841923,3.90365261,26094.0,26093.0,0.193467]
[1693539842137,4.16398656,26094.0,26093.0,0.193467]
[1693539842293,3.90383261,26094.0,26093.0,0.193467]
[1693539842489,3.90509261,26094.0,26093.0,0.193467]
[1693539842698,4.13962524,26094.0,26093.0,0.193467]
[1693539842891,4.14070524,26094.0,26093.0,0.193467]
[1693539843175,3.51865844,26094.0,26093.0,0.193467]
[1693539843358,3.51907844,26094.0,26093.0,0.193467]
[1693539843559,3.51895844,26094.0,26093.0,0.193467]
[1693539843712,3.72969328,26094.0,26093.0,0.193467]
[1693539843935,3.72903328,26094.0,26093.0,0.193467]
[1693539844131,3.72891328,26094.0,26093.0,0.193467]
[1693539844422,3.51793844,26094.0,26093.0,0.193467]
[1693539844583,3.51811844,26094.0,26093.0,0.193467]
[1693539844805,3.76600009,26094.0,26093.0,0.193467]
[1693539845004,3.76594009,26094.0,26093.0,0.193467]
[1693539845204,3.76582009,26094.0,26093.0,0.193467]
[1693539845425,3.76588009,26094.0,26093.0,0.193467]
[1693539845803,3.76522009,26094.0,26093.0,0.193467]
[1693539846003,3.51847844,26094.0,26093.0,0.193467]
[1693539846220,3.51841844,26094.0,26093.0,0.193467]
[1693539846498,3.51835844,26094.0,26093.0,0.193467]
[1693539846700,3.51859844,26094.0,26093.0,0.193467]
[1693539846900,3.51853844,26094.0,26093.0,0.193467]
[1693539847522,3.77114137,26094.0,26093.0,0.193467]
[1693539847743,3.51733844,26094.0,26093.0,0.193467]
[1693539848062,3.51955844,26094.0,26093.0,0.193467]
[1693539848287,3.51943844,26094.0,26093.0,0.193467]
[1693539848565,3.51955844,26094.0,26093.0,0.193467]
[1693539849062,3.51949844,26094.0,26093.0,0.193467]
[1693539849320,3.70824911,26094.0,26093.0,0.193467]
[1693539849523,3.70878911,26094.0,26093.0,0.193467]
[1693539849727,3.13262511,26094.0,26093.0,0.193467]